[Event "GrandPrix_29.05"]
[Site "Chess.com"]
[Date "2020.05.29"]
[Round "5"]
[White "jacky72"]
[Black "VerdeNotte"]
[Result "0-1"]
[WhiteElo "2383"]
[BlackElo "2686"]
[TimeControl "600+2"]
[EndTime "11:35:37 PDT"]
[Termination "VerdeNotte won by checkmate"]

1. d4 {[%clk 0:10:01.9]} 1... Nf6 {[%clk 0:09:58.1]} 2. c4 {[%clk 0:10:01.9]}
2... g6 {[%clk 0:09:55.5]} 3. Nc3 {[%clk 0:10:02.7]} 3... Bg7 {[%clk 0:09:55.3]}
4. e4 {[%clk 0:10:04.2]} 4... d6 {[%clk 0:09:55]} 5. Be2 {[%clk 0:10:05.7]} 5...
O-O {[%clk 0:09:55.3]} 6. Bg5 {[%clk 0:10:07.2]} 6... c5 {[%clk 0:09:31.4]} 7.
d5 {[%clk 0:10:06.8]} 7... b5 {[%clk 0:09:31.5]} 8. cxb5 {[%clk 0:10:07.7]} 8...
a6 {[%clk 0:09:32]} 9. a4 {[%clk 0:10:08.6]} 9... Qa5 {[%clk 0:09:26.3]} 10. Bd2
{[%clk 0:10:02.9]} 10... axb5 {[%clk 0:09:18.2]} 11. Nxb5 {[%clk 0:09:40.4]}
11... Qb6 {[%clk 0:09:15.8]} 12. a5 {[%clk 0:09:40.4]} 12... Qd8 {[%clk
0:08:37]} 13. Qc2 {[%clk 0:09:33.5]} 13... e6 {[%clk 0:08:01.1]} 14. dxe6 {[%clk
0:09:03.6]} 14... Bxe6 {[%clk 0:07:59]} 15. Nf3 {[%clk 0:08:58.1]} 15... Nc6
{[%clk 0:07:46.3]} 16. O-O {[%clk 0:08:55.8]} 16... Nxa5 {[%clk 0:05:23.7]} 17.
Nxd6 {[%clk 0:08:37.7]} 17... Qxd6 {[%clk 0:04:43.1]} 18. Rxa5 {[%clk 0:08:06]}
18... Rxa5 {[%clk 0:04:36.7]} 19. Bxa5 {[%clk 0:07:50.4]} 19... Ng4 {[%clk
0:04:33.6]} 20. h3 {[%clk 0:07:12.3]} 20... Ne5 {[%clk 0:04:31.2]} 21. Rd1
{[%clk 0:06:59.8]} 21... Qb8 {[%clk 0:04:28.9]} 22. Qxc5 {[%clk 0:06:04]} 22...
Qxb2 {[%clk 0:04:11.7]} 23. Qe3 {[%clk 0:05:18.1]} 23... Ra8 {[%clk 0:03:54]}
24. Nxe5 {[%clk 0:04:02]} 24... Bxe5 {[%clk 0:03:40.9]} 25. Bb6 {[%clk
0:03:58.1]} 25... Ra1 {[%clk 0:02:14.4]} 26. Rf1 {[%clk 0:03:21.6]} 26... Rb1
{[%clk 0:01:31.6]} 27. Bc5 {[%clk 0:03:13.5]} 27... h5 {[%clk 0:01:11.3]} 28. f4
{[%clk 0:02:48.1]} 28... Bc3 {[%clk 0:00:40.7]} 29. f5 {[%clk 0:02:33.8]} 29...
Bd7 {[%clk 0:00:12.7]} 30. fxg6 {[%clk 0:02:30.1]} 30... fxg6 {[%clk 0:00:09.1]}
31. Qd3 {[%clk 0:01:44.8]} 31... Rxf1+ {[%clk 0:00:09.4]} 32. Bxf1 {[%clk
0:01:46.7]} 32... Qd2 {[%clk 0:00:05.4]} 33. Qc4+ {[%clk 0:01:16.1]} 33... Kg7
{[%clk 0:00:06.2]} 34. Bf2 {[%clk 0:01:07.8]} 34... Be5 {[%clk 0:00:07.1]} 35.
Qc5 {[%clk 0:00:49]} 35... Qd6 {[%clk 0:00:05.7]} 36. Qe3 {[%clk 0:00:44.7]}
36... Qf6 {[%clk 0:00:06.5]} 37. Bc4 {[%clk 0:00:36.1]} 37... Be6 {[%clk
0:00:07.7]} 38. Bxe6 {[%clk 0:00:33.8]} 38... Qxe6 {[%clk 0:00:09.6]} 39. Qa7+
{[%clk 0:00:34.4]} 39... Qf7 {[%clk 0:00:08.3]} 40. Qc5 {[%clk 0:00:32.7]} 40...
Qf4 {[%clk 0:00:08.1]} 41. Qa7+ {[%clk 0:00:24.3]} 41... Kg8 {[%clk 0:00:08.5]}
42. Qe3 {[%clk 0:00:17.9]} 42... Kf7 {[%clk 0:00:08.1]} 43. Qxf4+ {[%clk
0:00:16.1]} 43... Bxf4 {[%clk 0:00:10]} 44. Bd4 {[%clk 0:00:18]} 44... Ke6
{[%clk 0:00:10.6]} 45. Kf2 {[%clk 0:00:19.3]} 45... Bd6 {[%clk 0:00:11.8]} 46.
Ke3 {[%clk 0:00:19.5]} 46... Bg3 {[%clk 0:00:12.7]} 47. Bg7 {[%clk 0:00:19.9]}
47... Bb8 {[%clk 0:00:12.7]} 48. Kf3 {[%clk 0:00:20.3]} 48... Bc7 {[%clk
0:00:12.7]} 49. Bh6 {[%clk 0:00:21.5]} 49... Be5 {[%clk 0:00:12.3]} 50. Bf4
{[%clk 0:00:22.4]} 50... Bc3 {[%clk 0:00:13.3]} 51. Bc7 {[%clk 0:00:21.8]} 51...
Bb4 {[%clk 0:00:13.4]} 52. Ke3 {[%clk 0:00:20.1]} 52... Be1 {[%clk 0:00:13.5]}
53. Kf4 {[%clk 0:00:18.8]} 53... Bd2+ {[%clk 0:00:14.7]} 54. Kf3 {[%clk
0:00:20.2]} 54... Be1 {[%clk 0:00:15.7]} 55. Bb6 {[%clk 0:00:19.6]} 55... Bd2
{[%clk 0:00:16.8]} 56. Be3 {[%clk 0:00:20.4]} 56... Bc3 {[%clk 0:00:17.1]} 57.
Kf4 {[%clk 0:00:21.6]} 57... Kf6 {[%clk 0:00:18.4]} 58. Bb6 {[%clk 0:00:19]}
58... Be5+ {[%clk 0:00:19.7]} 59. Kf3 {[%clk 0:00:19.9]} 59... Ke6 {[%clk
0:00:21.2]} 60. Ke3 {[%clk 0:00:19.4]} 60... Kd7 {[%clk 0:00:22]} 61. Bd4 {[%clk
0:00:19.2]} 61... Bc7 {[%clk 0:00:20.3]} 62. e5 {[%clk 0:00:20.5]} 62... Ke6
{[%clk 0:00:21.7]} 63. Ke4 {[%clk 0:00:22.4]} 63... Bd8 {[%clk 0:00:19.6]} 64.
Kf4 {[%clk 0:00:23.1]} 64... Be7 {[%clk 0:00:20.5]} 65. Bc3 {[%clk 0:00:21.3]}
65... Kd5 {[%clk 0:00:20]} 66. Bb2 {[%clk 0:00:19.5]} 66... Ke6 {[%clk
0:00:20.3]} 67. Ke4 {[%clk 0:00:20]} 67... Bc5 {[%clk 0:00:18.9]} 68. Bd4 {[%clk
0:00:20.3]} 68... Be7 {[%clk 0:00:20.1]} 69. Bb6 {[%clk 0:00:21.4]} 69... Bh4
{[%clk 0:00:19.3]} 70. Kf4 {[%clk 0:00:21.3]} 70... Be7 {[%clk 0:00:20.2]} 71.
Bc7 {[%clk 0:00:22.3]} 71... Kd5 {[%clk 0:00:20.5]} 72. Bd6 {[%clk 0:00:21.8]}
72... Bd8 {[%clk 0:00:21.7]} 73. Bf8 {[%clk 0:00:18.5]} 73... Ke6 {[%clk
0:00:22.3]} 74. Bh6 {[%clk 0:00:19.4]} 74... Be7 {[%clk 0:00:22.2]} 75. Bg5
{[%clk 0:00:19.9]} 75... Bb4 {[%clk 0:00:22.6]} 76. Bf6 {[%clk 0:00:20.4]} 76...
Bd2+ {[%clk 0:00:23.7]} 77. Ke4 {[%clk 0:00:22.3]} 77... Ba5 {[%clk 0:00:19.9]}
78. Ke3 {[%clk 0:00:22.5]} 78... Kd5 {[%clk 0:00:17]} 79. Kf3 {[%clk 0:00:19.3]}
79... Bc3 {[%clk 0:00:14.8]} 80. Kf4 {[%clk 0:00:18.4]} 80... Bd2+ {[%clk
0:00:16.1]} 81. Kg3 {[%clk 0:00:19.9]} 81... Bc3 {[%clk 0:00:13.2]} 82. Kh4
{[%clk 0:00:20.4]} 82... Bd2 {[%clk 0:00:14]} 83. g3 {[%clk 0:00:17.7]} 83...
Ke6 {[%clk 0:00:11.7]} 84. Bg5 {[%clk 0:00:18.8]} 84... Bc3 {[%clk 0:00:11.4]}
85. Bf4 {[%clk 0:00:19.7]} 85... Kf5 {[%clk 0:00:11.7]} 86. Bg5 {[%clk
0:00:07.4]} 86... Kxe5 {[%clk 0:00:09.3]} 87. g4 {[%clk 0:00:08.7]} 87... Be1#
{[%clk 0:00:10.1]} 0-1

[Event "GrandPrix_29.05"]
[Site "Chess.com"]
[Date "2020.05.29"]
[Round "5"]
[White "AbasovN"]
[Black "Supernotar"]
[Result "1-0"]
[WhiteElo "2321"]
[BlackElo "2115"]
[TimeControl "600+2"]
[EndTime "11:36:33 PDT"]
[Termination "AbasovN won by resignation"]

1. e4 {[%clk 0:10:01.9]} 1... c6 {[%clk 0:09:55.7]} 2. d4 {[%clk 0:10:02.5]}
2... d5 {[%clk 0:09:56.4]} 3. exd5 {[%clk 0:10:04.4]} 3... cxd5 {[%clk
0:09:57.3]} 4. Bd3 {[%clk 0:10:06.3]} 4... Nc6 {[%clk 0:09:58]} 5. c3 {[%clk
0:10:07]} 5... Qc7 {[%clk 0:09:59.1]} 6. Na3 {[%clk 0:10:07.6]} 6... a6 {[%clk
0:09:59.7]} 7. Ne2 {[%clk 0:10:06.3]} 7... Bg4 {[%clk 0:09:59.4]} 8. Nc2 {[%clk
0:10:06.1]} 8... Bh5 {[%clk 0:09:57.2]} 9. Bf4 {[%clk 0:09:47.6]} 9... Qxf4
{[%clk 0:09:41.5]} 10. Nxf4 {[%clk 0:09:47.8]} 10... Bxd1 {[%clk 0:09:41.5]} 11.
Rxd1 {[%clk 0:09:49.7]} 11... e6 {[%clk 0:09:41.4]} 12. b4 {[%clk 0:09:30.9]}
12... Nf6 {[%clk 0:09:38.3]} 13. a4 {[%clk 0:09:24.6]} 13... Bd6 {[%clk
0:09:36.8]} 14. Ne2 {[%clk 0:09:24.4]} 14... a5 {[%clk 0:09:36]} 15. Bb5 {[%clk
0:09:01.2]} 15... Ke7 {[%clk 0:09:14.4]} 16. Rb1 {[%clk 0:07:57.7]} 16... Rhc8
{[%clk 0:08:47.4]} 17. f3 {[%clk 0:07:45]} 17... Nd7 {[%clk 0:07:46.2]} 18. bxa5
{[%clk 0:06:01.5]} 18... Nxa5 {[%clk 0:07:26.8]} 19. Ne3 {[%clk 0:05:44.6]}
19... Nb6 {[%clk 0:07:18]} 20. Kd2 {[%clk 0:05:44.2]} 20... Ra7 {[%clk
0:06:24.3]} 21. g3 {[%clk 0:05:11.4]} 21... Nac4+ {[%clk 0:05:58.4]} 22. Nxc4
{[%clk 0:05:10.8]} 22... Nxc4+ {[%clk 0:05:49.8]} 23. Kd3 {[%clk 0:05:12.7]}
23... Nb6 {[%clk 0:05:12]} 24. Rb2 {[%clk 0:05:04.5]} 24... Rca8 {[%clk
0:05:03.9]} 25. Ra1 {[%clk 0:05:03.1]} 25... Nxa4 {[%clk 0:04:50.8]} 26. Bxa4
{[%clk 0:05:05]} 26... Rxa4 {[%clk 0:04:51.4]} 27. Rxb7+ {[%clk 0:05:06.6]}
27... Kf6 {[%clk 0:04:49.1]} 28. Rab1 {[%clk 0:05:05.2]} 28... R4a7 {[%clk
0:04:40.4]} 29. h4 {[%clk 0:05:06.1]} 29... Rxb7 {[%clk 0:04:30.5]} 30. Rxb7
{[%clk 0:05:08]} 30... h5 {[%clk 0:04:29.1]} 31. Rd7 {[%clk 0:05:01.6]} 31...
Ra6 {[%clk 0:04:23]} 32. g4 {[%clk 0:05:00.5]} 32... hxg4 {[%clk 0:04:16.6]} 33.
fxg4 {[%clk 0:05:02.4]} 33... Bb8 {[%clk 0:03:49.5]} 34. Ng1 {[%clk 0:05:01.6]}
34... Ra1 {[%clk 0:03:11.1]} 35. Nf3 {[%clk 0:05:02.1]} 35... Bf4 {[%clk
0:03:04.3]} 36. h5 {[%clk 0:04:18.8]} 36... Rd1+ {[%clk 0:02:34.6]} 37. Ke2
{[%clk 0:04:17.9]} 37... Rc1 {[%clk 0:02:35]} 38. Kd3 {[%clk 0:03:14.5]} 38...
Rd1+ {[%clk 0:02:34.7]} 39. Kc2 {[%clk 0:03:15.5]} 39... Rc1+ {[%clk 0:02:35.4]}
40. Kb2 {[%clk 0:03:14.5]} 40... Rf1 {[%clk 0:02:29.3]} 41. g5+ {[%clk
0:03:15.6]} 41... Bxg5 {[%clk 0:01:59.5]} 42. Ne5 {[%clk 0:03:16.7]} 42... Kf5
{[%clk 0:01:47.8]} 43. Nxf7 {[%clk 0:03:11.2]} 43... Bf6 {[%clk 0:01:32.8]} 44.
h6 {[%clk 0:03:08.5]} 44... gxh6 {[%clk 0:01:21.7]} 45. Nxh6+ {[%clk 0:03:10.4]}
45... Kg6 {[%clk 0:01:16.6]} 46. Ng4 {[%clk 0:03:08.2]} 46... Rf4 {[%clk
0:01:08.6]} 47. Ne3 {[%clk 0:03:09.3]} 47... Rf3 {[%clk 0:01:05.7]} 48. Nc2
{[%clk 0:03:08.5]} 48... Kf5 {[%clk 0:00:59.1]} 49. Nb4 {[%clk 0:03:07.3]} 49...
Rh3 {[%clk 0:00:46.7]} 50. Kc2 {[%clk 0:03:07.4]} 50... Bg5 {[%clk 0:00:32.4]}
51. Nd3 {[%clk 0:03:00.4]} 51... Rh2+ {[%clk 0:00:29.4]} 52. Kb3 {[%clk
0:03:00.3]} 52... Rh3 {[%clk 0:00:14]} 53. Rf7+ {[%clk 0:02:50.6]} 53... Bf6
{[%clk 0:00:11.5]} 54. Ne5 {[%clk 0:02:51.8]} 54... Kg5 {[%clk 0:00:08.8]} 55.
Nc6 {[%clk 0:02:50.8]} 55... Kg6 {[%clk 0:00:07]} 56. Rd7 {[%clk 0:02:41.3]}
56... Rh7 {[%clk 0:00:06.1]} 57. Rd6 {[%clk 0:02:35.5]} 57... Rb7+ {[%clk
0:00:05]} 58. Kc2 {[%clk 0:02:34.1]} 58... Kf7 {[%clk 0:00:05.6]} 59. Na5 {[%clk
0:02:32.3]} 59... Rc7 {[%clk 0:00:05.8]} 60. Nb3 {[%clk 0:02:28.9]} 60... Ke7
{[%clk 0:00:06.2]} 61. Ra6 {[%clk 0:02:29.6]} 61... e5 {[%clk 0:00:07.4]} 62.
Kd3 {[%clk 0:02:29]} 62... exd4 {[%clk 0:00:08.3]} 63. cxd4 {[%clk 0:02:30.9]}
63... Rb7 {[%clk 0:00:08.9]} 64. Nc5 {[%clk 0:02:31.5]} 64... Rb4 {[%clk
0:00:09.8]} 65. Ra7+ {[%clk 0:02:24.7]} 65... Ke8 {[%clk 0:00:10.7]} 66. Ne6
{[%clk 0:02:25]} 66... Rb6 {[%clk 0:00:10.7]} 67. Nc7+ {[%clk 0:02:24.4]} 67...
Kd8 {[%clk 0:00:11.5]} 68. Nxd5 {[%clk 0:02:26.3]} 68... Rd6 {[%clk 0:00:12.4]}
69. Kc4 {[%clk 0:02:23.9]} 69... Rc6+ {[%clk 0:00:13.1]} 70. Kb5 {[%clk
0:02:23.3]} 70... Re6 {[%clk 0:00:13.1]} 71. Kc5 {[%clk 0:02:21.2]} 71... Bh4
{[%clk 0:00:13.4]} 72. Nb4 {[%clk 0:02:08]} 72... Be7+ {[%clk 0:00:12.2]} 73.
Kd5 {[%clk 0:02:09]} 73... Rd6+ {[%clk 0:00:11.9]} 74. Ke5 {[%clk 0:02:10.1]}
74... Rh6 {[%clk 0:00:11.6]} 75. Nd5 {[%clk 0:02:07.4]} 75... Bd6+ {[%clk
0:00:12]} 76. Ke4 {[%clk 0:02:07.1]} 76... Rh4+ {[%clk 0:00:13.1]} 77. Kd3
{[%clk 0:02:07.7]} 77... Rh1 {[%clk 0:00:13.7]} 78. Nf6 {[%clk 0:02:06.6]} 78...
Bf4 {[%clk 0:00:07.9]} 79. Ke4 {[%clk 0:02:05.6]} 79... Bd2 {[%clk 0:00:06.5]}
80. Kd5 {[%clk 0:02:01.8]} 80... Rh6 {[%clk 0:00:05.8]} 81. Ng4 {[%clk
0:01:42.1]} 81... Rg6 {[%clk 0:00:05.8]} 82. Ne5 {[%clk 0:01:43.3]} 82... Rb6
{[%clk 0:00:04.5]} 83. Nc6+ {[%clk 0:01:40]} 83... Ke8 {[%clk 0:00:03.6]} 84.
Kc5 {[%clk 0:01:34.2]} 84... Rb1 {[%clk 0:00:04.4]} 85. Re7+ {[%clk 0:01:35.3]}
85... Kf8 {[%clk 0:00:05.2]} 86. Re2 {[%clk 0:01:37.2]} 86... Be1 {[%clk
0:00:05.6]} 87. d5 {[%clk 0:01:36.4]} 87... Bg3 {[%clk 0:00:06.4]} 88. Nd4
{[%clk 0:01:27.3]} 88... Rc1+ {[%clk 0:00:06.1]} 89. Kb6 {[%clk 0:01:27.9]}
89... Kf7 {[%clk 0:00:06.4]} 90. Nf5 {[%clk 0:01:26.5]} 90... Bc7+ {[%clk
0:00:03.9]} 91. Kb7 {[%clk 0:01:26.6]} 91... Bf4 {[%clk 0:00:04.7]} 92. Nd4
{[%clk 0:01:01.3]} 92... Rd1 {[%clk 0:00:04.3]} 93. Re4 {[%clk 0:00:59.4]} 93...
Be5 {[%clk 0:00:04.9]} 94. Rxe5 {[%clk 0:01:00.2]} 94... Rxd4 {[%clk 0:00:05]}
95. Kc7 {[%clk 0:01:00.5]} 95... Kf6 {[%clk 0:00:05.7]} 96. Re6+ {[%clk
0:01:01]} 96... Kf5 {[%clk 0:00:05.4]} 97. Kd6 {[%clk 0:00:59.7]} 97... Ra4
{[%clk 0:00:04.9]} 98. Re1 {[%clk 0:00:58.9]} 98... Ra6+ {[%clk 0:00:05]} 99.
Kc5 {[%clk 0:01:00]} 99... Ra5+ {[%clk 0:00:06.1]} 100. Kc6 {[%clk 0:01:01.3]}
100... Ra6+ {[%clk 0:00:07.2]} 101. Kb5 {[%clk 0:01:02.5]} 101... Ra8 {[%clk
0:00:06.5]} 102. d6 {[%clk 0:01:02.1]} 102... Kf6 {[%clk 0:00:07.4]} 103. Kb6
{[%clk 0:01:01.6]} 103... Kf7 {[%clk 0:00:06.9]} 104. d7 {[%clk 0:01:00.2]}
104... Ra2 {[%clk 0:00:07.5]} 105. d8=Q {[%clk 0:01:00.1]} 105... Rb2+ {[%clk
0:00:05.4]} 106. Kc5 {[%clk 0:00:59.5]} 106... Rc2+ {[%clk 0:00:05.8]} 107. Kb4
{[%clk 0:01:00.6]} 107... Rb2+ {[%clk 0:00:07]} 108. Kc3 {[%clk 0:01:01.7]}
108... Rb7 {[%clk 0:00:06.1]} 109. Qd5+ {[%clk 0:01:01.6]} 1-0

[Event "GrandPrix_29.05"]
[Site "Chess.com"]
[Date "2020.05.29"]
[Round "6"]
[White "Korona_91"]
[Black "Cocolino12"]
[Result "1-0"]
[WhiteElo "2027"]
[BlackElo "2260"]
[TimeControl "600+2"]
[EndTime "11:45:17 PDT"]
[Termination "Korona_91 won by resignation"]

1. e4 {[%clk 0:10:01.9]} 1... c5 {[%clk 0:09:59.8]} 2. Nf3 {[%clk 0:10:00.8]}
2... e6 {[%clk 0:10:01.1]} 3. b3 {[%clk 0:10:01.2]} 3... Nf6 {[%clk 0:09:59.8]}
4. e5 {[%clk 0:10:01.3]} 4... Nd5 {[%clk 0:10:01.3]} 5. Bb2 {[%clk 0:10:02]}
5... Nc6 {[%clk 0:10:02.5]} 6. c4 {[%clk 0:09:58.1]} 6... Nde7 {[%clk
0:10:01.6]} 7. Bd3 {[%clk 0:08:53.6]} 7... Ng6 {[%clk 0:09:57.8]} 8. Bxg6 {[%clk
0:08:49.3]} 8... hxg6 {[%clk 0:09:57.9]} 9. Nc3 {[%clk 0:08:45.2]} 9... Be7
{[%clk 0:09:32.3]} 10. Ne4 {[%clk 0:08:41.7]} 10... O-O {[%clk 0:09:02.3]} 11.
h4 {[%clk 0:08:35.7]} 11... d5 {[%clk 0:09:01.2]} 12. exd6 {[%clk 0:08:30.5]}
12... Bxd6 {[%clk 0:09:01.4]} 13. h5 {[%clk 0:08:28.2]} 13... gxh5 {[%clk
0:08:50]} 14. Nfg5 {[%clk 0:08:26.1]} 14... f6 {[%clk 0:07:44.8]} 15. Qxh5
{[%clk 0:08:15.3]} 15... fxg5 {[%clk 0:07:42.9]} 16. Nxg5 {[%clk 0:08:09.2]} 1-0

[Event "GrandPrix_29.05"]
[Site "Chess.com"]
[Date "2020.05.29"]
[Round "6"]
[White "vpantev"]
[Black "Infernal_XaM"]
[Result "1-0"]
[WhiteElo "2811"]
[BlackElo "2680"]
[TimeControl "600+2"]
[EndTime "11:46:49 PDT"]
[Termination "vpantev won by checkmate"]

1. d4 {[%clk 0:09:56.6]} 1... Nf6 {[%clk 0:10:00.5]} 2. Nf3 {[%clk 0:09:57.3]}
2... e6 {[%clk 0:10:01.7]} 3. Bf4 {[%clk 0:09:57.9]} 3... c5 {[%clk 0:10:01.5]}
4. c3 {[%clk 0:09:45.6]} 4... Nc6 {[%clk 0:10:02.1]} 5. e3 {[%clk 0:09:45.8]}
5... Nh5 {[%clk 0:09:59.9]} 6. Bg5 {[%clk 0:09:29.3]} 6... Qb6 {[%clk
0:10:00.3]} 7. Qb3 {[%clk 0:09:27.5]} 7... h6 {[%clk 0:10:00.2]} 8. Bh4 {[%clk
0:09:28.2]} 8... d5 {[%clk 0:09:51.9]} 9. Nbd2 {[%clk 0:09:17.7]} 9... g5 {[%clk
0:09:48.9]} 10. Bg3 {[%clk 0:09:16.8]} 10... g4 {[%clk 0:09:47.5]} 11. Ng1
{[%clk 0:09:07.5]} 11... Nxg3 {[%clk 0:09:47.6]} 12. hxg3 {[%clk 0:09:07.9]}
12... Bg7 {[%clk 0:09:25.5]} 13. Ne2 {[%clk 0:09:06.5]} 13... Bd7 {[%clk
0:09:22.2]} 14. Nf4 {[%clk 0:08:58]} 14... Qxb3 {[%clk 0:09:16.9]} 15. axb3
{[%clk 0:08:53.6]} 15... cxd4 {[%clk 0:09:17]} 16. exd4 {[%clk 0:08:53.3]} 16...
Ke7 {[%clk 0:09:17.7]} 17. Be2 {[%clk 0:08:50.3]} 17... Rhg8 {[%clk 0:08:36.4]}
18. b4 {[%clk 0:08:41.4]} 18... f5 {[%clk 0:08:21.9]} 19. Nb3 {[%clk 0:08:38.8]}
19... Kd6 {[%clk 0:08:22]} 20. Nc5 {[%clk 0:08:35.7]} 20... Bc8 {[%clk
0:08:22.9]} 21. b5 {[%clk 0:08:06.7]} 21... Nd8 {[%clk 0:08:19.6]} 22. Nh5
{[%clk 0:08:03.2]} 22... Bh8 {[%clk 0:08:12.3]} 23. Nf4 {[%clk 0:07:51.2]} 23...
Nf7 {[%clk 0:08:09.1]} 24. Kd2 {[%clk 0:07:40]} 24... e5 {[%clk 0:07:59.5]} 25.
dxe5+ {[%clk 0:07:10.4]} 25... Kxc5 {[%clk 0:07:57]} 26. b4+ {[%clk 0:07:07.3]}
26... Kb6 {[%clk 0:07:46.6]} 27. Nxd5# {[%clk 0:07:07.9]} 1-0

[Event "GrandPrix_29.05"]
[Site "Chess.com"]
[Date "2020.05.29"]
[Round "6"]
[White "payto1"]
[Black "gummigisla"]
[Result "1-0"]
[WhiteElo "2146"]
[BlackElo "2024"]
[TimeControl "600+2"]
[EndTime "11:47:21 PDT"]
[Termination "payto1 won by resignation"]

1. d4 {[%clk 0:10:00.8]} 1... Nf6 {[%clk 0:09:59]} 2. Bg5 {[%clk 0:10:00.4]}
2... Ne4 {[%clk 0:09:57.1]} 3. h4 {[%clk 0:10:00.5]} 3... Nxg5 {[%clk
0:09:55.1]} 4. hxg5 {[%clk 0:10:02.4]} 4... c5 {[%clk 0:09:55]} 5. d5 {[%clk
0:10:02.1]} 5... g6 {[%clk 0:09:55]} 6. c4 {[%clk 0:10:00.4]} 6... Bg7 {[%clk
0:09:56.1]} 7. Nc3 {[%clk 0:10:01.1]} 7... d6 {[%clk 0:09:49.6]} 8. Qd2 {[%clk
0:10:01.4]} 8... a6 {[%clk 0:09:47.3]} 9. e4 {[%clk 0:10:01.6]} 9... Qa5 {[%clk
0:09:37.1]} 10. Nf3 {[%clk 0:09:57.2]} 10... Bd7 {[%clk 0:09:35.4]} 11. Be2
{[%clk 0:09:51.4]} 11... b5 {[%clk 0:09:33.4]} 12. O-O {[%clk 0:09:51.5]} 12...
b4 {[%clk 0:09:17.5]} 13. Nd1 {[%clk 0:09:51.1]} 13... Qc7 {[%clk 0:09:17.3]}
14. Ne3 {[%clk 0:09:48]} 14... a5 {[%clk 0:09:12.7]} 15. Rae1 {[%clk 0:09:44.4]}
15... h6 {[%clk 0:09:03.6]} 16. gxh6 {[%clk 0:09:38.1]} 16... Bxh6 {[%clk
0:09:04.1]} 17. Bd1 {[%clk 0:09:32.7]} 17... a4 {[%clk 0:09:00.7]} 18. Bc2
{[%clk 0:09:31.5]} 18... e5 {[%clk 0:08:09.1]} 19. dxe6 {[%clk 0:09:25.4]} 19...
Bxe6 {[%clk 0:08:08.7]} 20. Nd5 {[%clk 0:09:14.4]} 20... Qd8 {[%clk 0:08:06.4]}
21. Qd1 {[%clk 0:09:11.3]} 21... a3 {[%clk 0:07:54.9]} 22. bxa3 {[%clk
0:08:43.2]} 22... Rxa3 {[%clk 0:07:53.7]} 23. e5 {[%clk 0:08:44.3]} 23... dxe5
{[%clk 0:06:49.2]} 24. Nxe5 {[%clk 0:08:41.7]} 24... Qh4 {[%clk 0:06:35.3]} 25.
Nxg6 {[%clk 0:08:09.4]} 25... fxg6 {[%clk 0:06:21]} 26. Rxe6+ {[%clk 0:08:07.6]}
26... Kf8 {[%clk 0:06:21.8]} 27. Rf6+ {[%clk 0:08:02.9]} 1-0

[Event "GrandPrix_29.05"]
[Site "Chess.com"]
[Date "2020.05.29"]
[Round "6"]
[White "Kobalia"]
[Black "Mugzyyy"]
[Result "1-0"]
[WhiteElo "2260"]
[BlackElo "2478"]
[TimeControl "600+2"]
[EndTime "11:47:54 PDT"]
[Termination "Kobalia won by resignation"]

1. e4 {[%clk 0:09:55.6]} 1... c5 {[%clk 0:09:40.7]} 2. Nf3 {[%clk 0:09:54.8]}
2... d6 {[%clk 0:09:41]} 3. Bb5+ {[%clk 0:09:55]} 3... Nd7 {[%clk 0:09:41.6]} 4.
O-O {[%clk 0:09:55]} 4... Nf6 {[%clk 0:09:38.2]} 5. Re1 {[%clk 0:09:49.4]} 5...
a6 {[%clk 0:09:38.6]} 6. Bf1 {[%clk 0:09:50.4]} 6... b5 {[%clk 0:09:38.7]} 7. c4
{[%clk 0:09:40.7]} 7... bxc4 {[%clk 0:09:37.9]} 8. Bxc4 {[%clk 0:09:40]} 8...
Bb7 {[%clk 0:09:37.1]} 9. Bxf7+ {[%clk 0:08:52.6]} 9... Kxf7 {[%clk 0:09:39]}
10. Qb3+ {[%clk 0:08:53.2]} 10... Bd5 {[%clk 0:08:52]} 11. exd5 {[%clk
0:08:52.5]} 11... h6 {[%clk 0:08:50.9]} 12. Nc3 {[%clk 0:08:45.6]} 12... Qb8
{[%clk 0:08:38.3]} 13. Qc4 {[%clk 0:08:38.5]} 13... Qb7 {[%clk 0:08:23.8]} 14.
Qe2 {[%clk 0:08:25.8]} 14... Nb6 {[%clk 0:08:09.4]} 15. d4 {[%clk 0:08:14.3]}
15... c4 {[%clk 0:08:06.2]} 16. Qe6+ {[%clk 0:08:06.6]} 16... Ke8 {[%clk
0:08:07.3]} 17. Qxd6 {[%clk 0:08:03.5]} 17... Nbxd5 {[%clk 0:08:04.6]} 18. Qg3
{[%clk 0:07:21.8]} 18... g5 {[%clk 0:07:55.4]} 19. Ne5 {[%clk 0:07:16.2]} 19...
Rc8 {[%clk 0:07:48.1]} 20. Qf3 {[%clk 0:07:07.1]} 20... Bg7 {[%clk 0:07:44.8]}
21. Ng6 {[%clk 0:06:54]} 21... g4 {[%clk 0:07:41.6]} 22. Qf5 {[%clk 0:06:46.3]}
22... Rg8 {[%clk 0:07:42.6]} 23. Nxd5 {[%clk 0:06:34.9]} 23... Nxd5 {[%clk
0:07:44.5]} 24. Qe6 {[%clk 0:06:28.2]} 24... Rf8 {[%clk 0:07:35.2]} 25. Nxf8
{[%clk 0:06:13.9]} 25... Kxf8 {[%clk 0:07:37.1]} 26. Bxh6 {[%clk 0:06:07.7]} 1-0

[Event "GrandPrix_29.05"]
[Site "Chess.com"]
[Date "2020.05.29"]
[Round "6"]
[White "Arasvard"]
[Black "Yuri202062"]
[Result "1/2-1/2"]
[WhiteElo "2041"]
[BlackElo "1889"]
[TimeControl "600+2"]
[EndTime "11:48:12 PDT"]
[Termination "Game drawn by repetition"]

1. d4 {[%clk 0:10:01.9]} 1... d5 {[%clk 0:10:00.3]} 2. c4 {[%clk 0:10:02.7]}
2... e6 {[%clk 0:10:00.9]} 3. Nc3 {[%clk 0:10:03.4]} 3... c6 {[%clk 0:10:01]} 4.
Nf3 {[%clk 0:10:01.9]} 4... Nf6 {[%clk 0:10:01.3]} 5. Bg5 {[%clk 0:10:02.5]}
5... dxc4 {[%clk 0:10:00.5]} 6. e4 {[%clk 0:10:03.6]} 6... b5 {[%clk 0:10:00.8]}
7. e5 {[%clk 0:10:04.5]} 7... h6 {[%clk 0:10:01.8]} 8. Bh4 {[%clk 0:10:06.1]}
8... g5 {[%clk 0:10:02.8]} 9. Nxg5 {[%clk 0:10:07.6]} 9... hxg5 {[%clk 0:10:04]}
10. Bxg5 {[%clk 0:10:09.5]} 10... Nbd7 {[%clk 0:10:04.6]} 11. exf6 {[%clk
0:10:10.3]} 11... Bb7 {[%clk 0:10:04.4]} 12. g3 {[%clk 0:10:10]} 12... Qb6
{[%clk 0:10:01.1]} 13. Bg2 {[%clk 0:10:10.4]} 13... O-O-O {[%clk 0:10:02.1]} 14.
O-O {[%clk 0:10:11.4]} 14... c5 {[%clk 0:10:02.3]} 15. d5 {[%clk 0:10:12.2]}
15... b4 {[%clk 0:10:02.7]} 16. Rb1 {[%clk 0:10:13.5]} 16... Qa6 {[%clk
0:09:57.4]} 17. dxe6 {[%clk 0:10:14.4]} 17... Bxg2 {[%clk 0:09:57.4]} 18. e7
{[%clk 0:10:15]} 18... Bxf1 {[%clk 0:09:34.5]} 19. Qd5 {[%clk 0:10:10.5]} 19...
Bd3 {[%clk 0:05:36.2]} 20. Ne4 {[%clk 0:09:49.9]} 20... Bxe7 {[%clk 0:04:58.9]}
21. fxe7 {[%clk 0:09:42.9]} 21... Bxb1 {[%clk 0:04:55.7]} 22. Nd6+ {[%clk
0:09:20.1]} 22... Kc7 {[%clk 0:04:54.9]} 23. Bf4 {[%clk 0:09:14.1]} 23... Kb6
{[%clk 0:04:55.2]} 24. Nxc4+ {[%clk 0:09:10.1]} 24... Kb5 {[%clk 0:04:56]} 25.
Nd6+ {[%clk 0:09:04.1]} 25... Kb6 {[%clk 0:04:51.7]} 26. exd8=Q+ {[%clk
0:08:56.9]} 26... Rxd8 {[%clk 0:04:51]} 27. Nc4+ {[%clk 0:08:57.2]} 27... Kb5
{[%clk 0:04:51.4]} 28. Nd6+ {[%clk 0:08:51]} 28... Kb6 {[%clk 0:04:51.6]} 29.
Nc4+ {[%clk 0:08:51.8]} 29... Kb5 {[%clk 0:04:52.2]} 30. Nd6+ {[%clk 0:08:52.9]}
30... Kb6 {[%clk 0:04:52.7]} 1/2-1/2